fUSD/lending_fUSD_20250206
["ID","MTS","AMOUNT","RATE_DAILY","PERIOD"]
[351938457,1738852250812,-500.0,0.00019178,2]
[351938458,1738852250821,-2337.69,0.00019178,2]
[351938459,1738852250831,-500.0,0.00019178,2]
[351938460,1738852250840,-500.0,0.00019178,2]
[351938461,1738852250850,-500.0,0.00019178,2]
[351938462,1738852250859,-500.0,0.00019178,2]
[351938463,1738852250868,-378.89565086,0.00019178,2]
[351938464,1738852250878,-1733.61,0.00019178,2]
[351938465,1738852250887,-500.0,0.00019178,2]
[351938466,1738852250896,-500.0,0.00019178,2]
[351938467,1738852250906,-466.85934364,0.00019178,2]
[351938468,1738852250915,-1218.63,0.00019178,2]
[351938469,1738852250924,-500.0,0.00019178,2]
[351938470,1738852250933,-500.0,0.00019178,2]
[351938471,1738852250943,-1111.56,0.00019178,2]
[351938472,1738852250952,-509.11856352,0.00019178,2]
[351938473,1738852250963,-500.0,0.00019178,2]
[351938474,1738852250973,-1199.11,0.00019178,2]
[351938475,1738852250982,-979.61,0.00019178,2]
[351938476,1738852250992,-500.0,0.00019178,2]
[351938477,1738852251001,-1389.92,0.00019178,2]
[351938478,1738852251011,-500.0,0.00019178,2]
[351938479,1738852251021,-1192.48,0.00019178,2]
[351938480,1738852251031,-631.35,0.00019178,2]
[351938481,1738852251040,-465.00981262,0.00019178,2]
[351938482,1738852251049,-869.04,0.00019178,2]
[351938483,1738852251059,-1414.43,0.00019178,2]
[351938484,1738852251068,-977.5,0.00019178,2]
[351938485,1738852251077,-500.0,0.00019178,2]
[351938486,1738852251086,-500.0,0.00019178,2]
[351938487,1738852251096,-500.0,0.00019178,2]
[351938488,1738852251105,-1318.98,0.00019178,2]
[351938489,1738852251114,-1078.66,0.00019178,2]
[351938490,1738852251123,-500.0,0.00019178,2]
[351938491,1738852251133,-912.44,0.00019178,2]
[351938492,1738852251142,-500.0,0.00019178,2]
[351938493,1738852251152,-1225.07,0.00019178,2]
[351938494,1738852251162,-500.0,0.00019178,2]
[351938495,1738852251172,-500.0,0.00019178,2]
[351938496,1738852251181,-1588.64,0.00019178,2]
[351938497,1738852251191,-500.0,0.00019178,2]
[351938498,1738852251200,-500.0,0.00019178,2]
[351938499,1738852251209,-1222.07,0.00019178,2]
[351938500,1738852251220,-500.0,0.00019178,2]
[351938501,1738852251230,-500.0,0.00019178,2]
[351938502,1738852251291,-500.0,0.00019178,2]
[351938503,1738852251303,-500.0,0.00019178,2]
[351938504,1738852251314,-823.44,0.00019178,2]
[351938505,1738852251324,-500.0,0.00019178,2]
[351938506,1738852251333,-631.34,0.00019178,2]
[351938507,1738852251343,-660.69,0.00019178,2]
[351938508,1738852251352,-500.0,0.00019178,2]
[351938509,1738852251362,-500.0,0.00019178,2]
[351938510,1738852251371,-150.0,0.00019178,2]
[351938511,1738852251380,-154.79864102,0.000192,2]
[351938512,1738852251390,-154.79864102,0.000192,2]
[351938513,1738852251400,-154.79864102,0.000192,2]
[351938514,1738852251410,-154.79864102,0.000192,2]
[351938515,1738852251419,-154.79864102,0.000192,2]
[351938516,1738852251429,-154.79864102,0.000192,2]
[351938517,1738852251439,-154.79864102,0.000192,2]
[351938518,1738852251447,-154.79864102,0.000192,2]
[351938519,1738852251457,-154.79864102,0.000192,2]
[351938520,1738852251469,-154.79864102,0.000192,2]
[351938521,1738852251478,-154.79864102,0.000192,2]
[351938522,1738852251487,-154.79864102,0.000192,2]
[351938523,1738852251496,-154.79864102,0.000192,2]
[351938524,1738852251505,-154.79864102,0.000192,2]
[351938525,1738852251514,-154.79864102,0.000192,2]
[351938526,1738852251523,-154.79864102,0.000192,2]
[351938527,1738852251532,-154.79,0.000192,2]
[351938528,1738852251542,-159.27213308,0.000192,2]
[351938529,1738852251551,-159.27213308,0.000192,2]
[351938530,1738852251560,-159.27213308,0.000192,2]
[351938531,1738852251569,-159.27213308,0.000192,2]
[351938532,1738852251578,-159.27213308,0.000192,2]
[351938533,1738852251588,-159.27213308,0.000192,2]
[351938534,1738852251597,-159.27213308,0.000192,2]
[351938535,1738852251606,-159.27213308,0.000192,2]
[351938536,1738852251616,-159.27213308,0.000192,2]
[351938537,1738852251625,-159.27213308,0.000192,2]
[351938538,1738852251634,-159.27213308,0.000192,2]
[351938539,1738852251643,-159.27213308,0.000192,2]
[351938540,1738852251653,-159.27213308,0.000192,2]
[351938541,1738852251662,-159.27213308,0.000192,2]
[351938542,1738852251671,-159.27213308,0.000192,2]
[351938543,1738852251681,-159.27213308,0.000192,2]
[351938544,1738852251690,-159.27213308,0.000192,2]
[351938545,1738852251700,-159.27213308,0.000192,2]
[351938546,1738852251709,-159.27213308,0.000192,2]
[351938547,1738852251722,-159.27,0.000192,2]
[351938548,1738852251731,-226.37674682,0.000192,2]
[351938549,1738852251740,-226.37674682,0.000192,2]
[351938550,1738852251749,-226.37674682,0.000192,2]
[351938551,1738852251759,-226.37674682,0.000192,2]
[351938552,1738852251768,-226.37674682,0.000192,2]
[351938553,1738852251777,-226.37674682,0.000192,2]
[351938554,1738852251786,-226.37674682,0.000192,2]
[351938555,1738852251795,-226.37674682,0.000192,2]
[351938556,1738852251805,-226.37674682,0.000192,2]
[351938557,1738852251814,-226.37674682,0.000192,2]
[351938558,1738852251823,-226.37674682,0.000192,2]
[351938559,1738852251832,-226.37674682,0.000192,2]
[351938560,1738852251842,-226.37674682,0.000192,2]
[351938561,1738852251851,-226.37674682,0.000192,2]
[351938562,1738852251860,-226.37674682,0.000192,2]
[351938563,1738852251869,-226.37674682,0.000192,2]
[351938564,1738852251879,-226.37674682,0.000192,2]
[351938565,1738852251888,-226.37674682,0.000192,2]
[351938566,1738852251897,-226.37674682,0.000192,2]
[351938567,1738852251906,-226.37,0.000192,2]
[351938568,1738852251915,-150.0,0.00019232,2]
[351938569,1738852251924,-500.0,0.00019236,2]
[351938570,1738852251934,-486.18,0.00019242,30]
[351938571,1738852251943,-150.0,0.00019254,2]
[351938572,1738852251952,-150.0,0.00019268,2]
[351938573,1738852251962,-150.0,0.00019274,2]
[351938574,1738852251971,-500.0,0.00019275,2]
[351938575,1738852251980,-150.0,0.00019276,2]
[351938576,1738852251989,-150.0,0.00019283,2]
[351938577,1738852251999,-5383.5762044,0.00019287,2]
[351938578,1738852252008,-4892.7775491,0.00019287,2]
[351938579,1738852252017,-16730.4591227,0.00019287,2]
[351938580,1738852252026,-15205.2114941,0.00019287,2]
[351938581,1738852252035,-471.14043102,0.000193,2]
[351938582,1738852252045,-2537.07,0.000193,30]
[351938583,1738852252054,-862450.46349621,0.000193,30]
[351938584,1738852252434,-10241.14099999,0.000193,30]
[351938585,1738852252781,-417.70469685,0.00019178,2]
[351938586,1738852252790,-6911.09510315,0.000193,30]
[351938587,1738852252802,-2870.67254922,0.000193,30]
[351938588,1738852252880,-5115.87829999,0.000193,30]
[351938589,1738852252906,-2720.39555972,0.000193,30]
[351938590,1738852252927,-28440.02962847,0.000193,30]
[351938591,1738852252939,-4217.54015466,0.000193,30]
[351938592,1738852252950,-1559.31079056,0.000193,30]
[351938593,1738852252963,-493.20959227,0.000193,30]
[351938594,1738852252974,-807.70633872,0.000193,30]
[351938595,1738852253841,-1007.0,0.00018559,2]
[351938596,1738852253852,-500.0,0.00019178,2]
[351938597,1738852253862,-7244.67796013,0.000193,30]
[351938598,1738852253874,-69724.94034401,0.000193,30]
[351938599,1738852253887,-363.52520341,0.000193,30]
[351938600,1738852253900,-39417.01224045,0.000193,30]
[351938601,1738852253912,-526.79028708,0.000193,30]
[351938602,1738852254039,-500.0,0.00019178,2]
[351938603,1738852254049,-357164.92644943,0.000193,30]
[351938604,1738852254060,-2190.84854019,0.000193,30]
[351938605,1738852254237,-1969.26,0.00018877,2]
[351938606,1738852254248,-29618.979034,0.000193,30]
[351938607,1738852254260,-430.18684934,0.000193,30]
[351938608,1738852254272,-11258.983078,0.000193,30]
[351938609,1738852254284,-553.56974129,0.000193,30]
[351938610,1738852254295,-663.02749647,0.000193,30]
[351938611,1738852254338,-664824.20270511,0.000193,30]
[351938612,1738852254350,-329.36699999,0.000193,30]
[351938613,1738852254371,-506.28464956,0.000193,30]
[351938614,1738852254380,-459.10053393,0.000193,30]
[351938615,1738852254392,-2030.5749785,0.000193,30]
[351938616,1738852254408,-3701.92517562,0.000193,30]
[351938617,1738852254419,-907.97502374,0.000193,30]
[351938618,1738852254430,-681.747909,0.000193,30]
[351938619,1738852254721,-1250.00320313,0.000193,30]
[351938620,1738852254733,-29238.75906275,0.000193,30]
[351938621,1738852254745,-609.53823585,0.000193,30]
[351938651,1738853432288,-150.0,9.863e-05,2]
[351938652,1738853432298,-154.735115,9.881e-05,2]
[351938653,1738853432308,-154.401312,9.881e-05,2]
[351938654,1738853432317,-156.489645,9.881e-05,2]
[351938655,1738853432326,-154.590289,9.881e-05,2]
[351938656,1738853432336,-182.667507,9.881e-05,2]
[351938657,1738853432345,-1020.776132,9.881e-05,2]
[351938658,1738853432357,-343.401,9.881e-05,2]
[351938659,1738853432369,-3913.61956408,9.881e-05,2]
[351938660,1738853432405,-4368.20330392,9.881e-05,2]
[351938661,1738853432415,-154.122774,9.881e-05,2]
[351938662,1738853432425,-154.959195,9.881e-05,2]
[351938663,1738853432437,-154.735115,0.00010018,2]
[351938664,1738853432447,-150.74,0.00010137,2]
[351938665,1738853432457,-154.590289,0.00010155,2]
[351938666,1738853432468,-154.735115,0.00010292,2]
[351938667,1738853432478,-154.590289,0.00010292,2]
[351938668,1738853432488,-154.735115,0.00010429,2]
[351938669,1738853432497,-154.590289,0.00010429,2]
[351938670,1738853432507,-154.735115,0.00010566,2]
[351938671,1738853432516,-154.735115,0.00010703,2]
[351938673,1738853432526,-154.590289,0.00010703,2]
[351938675,1738853432535,-154.735115,0.00010977,2]
[351938677,1738853432544,-154.590289,0.00010977,2]
[351938679,1738853432554,-154.735115,0.00011114,2]
[351938681,1738853432563,-154.590289,0.00011114,2]
[351938683,1738853432572,-154.735115,0.00011251,2]
[351938685,1738853432583,-154.590289,0.00011251,2]
[351938687,1738853432594,-369.59,0.00013944,2]
[351938689,1738853432603,-1004.91,0.00015137,2]
[351938691,1738853432613,-370.24,0.0001575,2]
[351938693,1738853432623,-207.87,0.00015953,2]
[351938695,1738853432633,-2940.11,0.00016116,2]
[351938697,1738853432643,-150.0,0.000163,2]
[351938699,1738853432653,-232.23,0.00016305,2]
[351938701,1738853432662,-250.0,0.00016343,2]
[351938703,1738853432672,-200.0,0.0001635,2]
[351938705,1738853432686,-1000.0,0.00016477,2]
[351938707,1738853432695,-461.87,0.00016658,30]
[351938709,1738853432704,-23900.0,0.00016761,2]
[351938711,1738853432714,-190.66,0.00017119,2]
[351938713,1738853432725,-201.0,0.000173,2]
[351938715,1738853432735,-985.588,0.00017401,2]
[351938717,1738853432745,-1004.91,0.00017401,2]
[351938719,1738853432754,-984.89,0.00018055,2]
[351938721,1738853432765,-984.89,0.00018055,2]
[351938723,1738853432774,-984.89,0.00018055,2]
[351938724,1738853432783,-984.89,0.00018055,2]
[351938726,1738853432792,-11975.25,0.00018067,7]
[351938728,1738853432801,-11975.25,0.00018067,7]
[351938730,1738853432812,-11975.25,0.00018067,7]
[351938733,1738853432821,-11975.25,0.00018067,7]
[351938734,1738853432831,-192.29,0.00018082,2]
[351938736,1738853432840,-423.49022089,0.00018187,2]
[351938739,1738853432851,-11975.25,0.00018341,7]
[351938741,1738853432861,-11975.25,0.00018341,7]
[351938743,1738853432871,-372.84,0.00018477,2]
[351938745,1738853432880,-372.65,0.00018477,2]
[351938746,1738853432890,-375.01,0.00018477,2]
[351938748,1738853432899,-1186.29499919,0.00018489,2]
[351938751,1738853432912,-836.70500081,0.00018489,2]
[351938753,1738853432921,-1272.0,0.00018489,2]
[351938755,1738853432933,-150.0,0.00018489,2]
[351938757,1738853432942,-568.0,0.00018489,2]
[351938759,1738853432952,-638.0,0.00018489,2]
[351938761,1738853432961,-1826.0,0.00018489,2]
[351938763,1738853432971,-907.0,0.00018489,2]
[351938765,1738853432981,-1264.0,0.00018489,2]
[351938767,1738853432991,-783.0,0.00018489,2]
[351938769,1738853433001,-2953.0,0.00018489,2]
[351938771,1738853433011,-4023.0,0.00018489,2]
[351938773,1738853433022,-539.0,0.00018489,2]
[351938775,1738853433031,-150.0,0.00018489,2]
[351938777,1738853433041,-1028.0,0.00018489,2]
[351938779,1738853433051,-3911.0,0.00018489,2]
[351938780,1738853433060,-1000.0,0.00018537,2]
[351938782,1738853433071,-7644.85173919,0.00018615,7]
[351938785,1738853433087,-4330.39826081,0.00018615,7]
[351938787,1738853433096,-4635.81810566,0.00018615,7]
[351938865,1738853438246,-7339.43189434,0.00018615,7]
[351938866,1738853438255,-467.05939379,0.00018683,2]
[351938867,1738853438264,-365.67,0.00018737,2]
[351938868,1738853438273,-984.89,0.00018877,2]
[351938869,1738853438283,-984.89,0.00018877,2]
[351938870,1738853438291,-984.89,0.00018877,2]
[351938871,1738853438300,-984.89,0.00018877,2]
[351938872,1738853438309,-984.89,0.00018877,2]
[351938873,1738853438318,-984.89,0.00018877,2]
[351938874,1738853438327,-984.89,0.00018877,2]
[351938875,1738853438335,-984.89,0.00018877,2]
[351938876,1738853438344,-984.89,0.00018877,2]
[351938877,1738853438353,-984.89,0.00018877,2]
[351938878,1738853438362,-984.89,0.00018877,2]
[351938879,1738853438370,-984.89,0.00018877,2]
[351938880,1738853438380,-984.89,0.00018877,2]
[351938882,1738853438389,-53.13352247,0.00018877,2]
[351938884,1738853438400,-931.75647753,0.00018877,2]
[351938886,1738853438409,-984.89,0.00018877,2]
[351938888,1738853438418,-984.89,0.00018877,2]
[351938890,1738853438428,-984.89,0.00018877,2]
[351938892,1738853438437,-984.89,0.00018877,2]
[351938894,1738853438446,-984.89,0.00018877,2]
[351938896,1738853438455,-984.89,0.00018877,2]
[351938898,1738853438464,-1233.54,0.00018877,2]
[351938899,1738853438473,-1363.08104336,0.00018889,7]
[351938902,1738853438483,-7671.53000001,0.00018889,7]
[351938905,1738853438502,-2940.63895663,0.00018889,7]
[351938907,1738853438511,-11975.25,0.00018889,7]
[351938909,1738853438521,-2109.57118226,0.000189,2]
[351938911,1738853438530,-951.6670294,0.00018913,2]
[351938913,1738853438539,-150.0,0.0001899,2]
[351938915,1738853438548,-500.0,0.00019,11]
[351938917,1738853438557,-1569.0,0.00019,2]
[351938919,1738853438564,-2007.8,0.00019,7]
[351938922,1738853438572,-150.0,0.00019099,2]
[351938924,1738853438580,-2309.61377868,0.00019136,2]
[351938927,1738853438590,-427.20011096,0.00019136,2]
[351938931,1738853438600,-500.0,0.00019145,2]
[351938934,1738853438608,-500.0,0.00019145,2]
[351938937,1738853438618,-500.0,0.00019145,2]
[351938940,1738853438627,-500.0,0.00019146,2]
[351938943,1738853438636,-500.0,0.00019146,2]
[351938945,1738853438644,-500.0,0.00019146,2]
[351938947,1738853438653,-11975.25,0.00019163,7]
[351938949,1738853438660,-11975.25,0.00019163,7]
[351938951,1738853438667,-104877.12579331,0.00019176,10]
[351938953,1738853438682,-6368.11,0.00019176,10]
[351938955,1738853438693,-3070.18412211,0.00019176,10]
[351938957,1738853438703,-309.99999999,0.00019176,10]
[351938959,1738853438711,-463.18979241,0.00019176,10]
[351939107,1738853440222,-500.0,0.00019175,2]
[351939109,1738853440232,-286.26720155,0.00019175,2]
[351939111,1738853440242,-208041.79884056,0.00019176,10]
[351939113,1738853440255,-540.5656742,0.00019176,10]
[351939115,1738853440267,-730.90623362,0.00019176,10]
[351939118,1738853440279,-297.56731674,0.00019176,10]
[351939127,1738853440364,-19610.0,0.00019176,10]
[351939129,1738853440377,-10960.139135,0.00019176,10]
[351939137,1738853440460,-14855.06721245,0.00019176,10]
[351939150,1738853440570,-49116.92775158,0.00019176,10]
[351939152,1738853440581,-510.93371529,0.00019176,10]
[351939421,1738853443286,-984.89,0.00018055,2]
[351939423,1738853443345,-500.0,0.00019175,2]
[351939425,1738853443356,-130.46846877,0.00019175,2]
[351939427,1738853443368,-433.24114842,0.00019175,2]
[351939429,1738853443378,-500.0,0.00019175,2]
[351939431,1738853443388,-500.0,0.00019175,2]
[351939433,1738853443397,-500.0,0.00019175,2]
[351939435,1738853443407,-500.0,0.00019175,2]
[351939437,1738853443417,-500.0,0.00019175,2]
[351939439,1738853443426,-500.0,0.00019175,2]
[351939441,1738853443442,-500.0,0.00019175,2]
[351939443,1738853443451,-1584.25885158,0.00019176,10]
[351939446,1738853443470,-19985.85823401,0.00019176,10]
[351939449,1738853443483,-194404.72669238,0.00019176,10]
[351939452,1738853443506,-461.2000035,0.00019176,10]
[351939454,1738853443517,-4683.07149268,0.00019176,10]
[351939456,1738853443528,-357664.92644943,0.00019176,10]
[351939458,1738853443540,-6229.97852084,0.00019176,10]
[351939460,1738853443552,-916.86,0.00019176,10]
[351939470,1738853443635,-698.384581,0.00019176,10]
[351939740,1738853446195,-1108.0,0.00018489,2]
[351939741,1738853446205,-3609.6959659,0.00019176,10]
[351939742,1738853446240,-345926.13690713,0.00019176,10]
[351939743,1738853446289,-1473.32726893,0.00019176,10]
[351939746,1738853446346,-2261.5031801,0.00019176,10]
[351939748,1738853446359,-5509.32090002,0.00019176,10]
[351939753,1738853446411,-73453.2630012,0.00019176,10]
[351939755,1738853446424,-2033.57867502,0.00019176,10]
[351940029,1738854632385,-302.83770475,8.836e-05,2]
[351940048,1738854632558,-500.04139326,8.836e-05,2]
[351940050,1738854632569,-356.15532581,8.836e-05,2]
[351940052,1738854632581,-1133.95641064,8.836e-05,2]
[351940055,1738854632593,-725.67701449,8.836e-05,2]
[351940057,1738854632605,-3216.93866102,8.836e-05,2]
[351940060,1738854632627,-3419.48999997,8.836e-05,2]
[351940062,1738854632640,-12810.43825737,8.836e-05,2]
[351940069,1738854632696,-5026.02783269,8.836e-05,2]
[351940071,1738854632706,-1314.7618,8.836e-05,2]
[351940073,1738854632716,-1054.8597,8.836e-05,2]
[351940075,1738854632726,-1092.7996,8.836e-05,2]
[351940077,1738854632735,-500.0,8.904e-05,2]
[351940079,1738854632745,-293.1368,8.973e-05,2]
[351940081,1738854632755,-500.0,9.719e-05,2]
[351940083,1738854632766,-154.590289,9.881e-05,2]
[351940085,1738854632776,-149.82397831,9.881e-05,2]
[351940088,1738854632796,-14.52521569,9.881e-05,2]
[351940089,1738854632806,-154.590289,0.00010018,2]
[351940090,1738854632815,-164.349194,0.00010018,2]
[351940091,1738854632826,-154.590289,0.00010155,2]
[351940093,1738854632836,-164.349194,0.00010155,2]
[351940094,1738854632846,-164.349194,0.00010292,2]
[351940095,1738854632856,-154.590289,0.00010429,2]
[351940096,1738854632866,-164.349194,0.00010429,2]
[351940097,1738854632876,-154.590289,0.00010566,2]
[351940098,1738854632886,-164.349194,0.00010566,2]
[351940099,1738854632899,-154.590289,0.00010703,2]
[351940100,1738854632909,-164.349194,0.00010703,2]
[351940101,1738854632919,-154.590289,0.0001084,2]
[351940102,1738854632929,-164.349194,0.0001084,2]
[351940104,1738854632938,-154.590289,0.00010977,2]
[351940105,1738854632948,-164.349194,0.00010977,2]
[351940107,1738854632957,-164.349194,0.00011114,2]
[351940109,1738854632967,-154.590289,0.00011251,2]
[351940111,1738854632976,-164.349194,0.00011251,2]
[351940113,1738854632986,-154.590289,0.00011388,2]
[351940115,1738854632997,-164.349194,0.00011388,2]
[351940117,1738854633007,-977.18,0.00015356,2]
[351940119,1738854633016,-788.47,0.0001677,2]
[351940121,1738854633026,-178.42,0.00016859,2]
[351940123,1738854633036,-804.52,0.00016875,2]
[351940125,1738854633047,-200.0,0.00017316,2]
[351940127,1738854633057,-977.18,0.0001762,2]
[351940129,1738854633067,-4848.15104931,0.00018027,2]
[351940620,1738854638500,-330.396606,8.791e-05,2]
[351940622,1738854638510,-846.79256985,8.904e-05,2]
[351940624,1738854638521,-1442.0,8.904e-05,2]
[351940627,1738854638536,-672.95148291,8.904e-05,2]
[351940629,1738854638547,-737.15090079,8.904e-05,2]
[351940631,1738854638557,-10954.92895069,0.00018027,2]
[351940633,1738854638566,-266.85,0.00018027,2]
[351940635,1738854638576,-250.0,0.00018028,2]
[351940637,1738854638586,-192.29,0.00018082,2]
[351940639,1738854638595,-1000.0,0.00018091,2]
[351940641,1738854638605,-438.77,0.00018206,30]
[351940643,1738854638614,-508.1,0.00018301,2]
[351940645,1738854638623,-500.0,0.000184,6]
[351940647,1738854638632,-150.149,0.00018489,2]
[351940649,1738854638643,-150.0,0.00018489,2]
[351940651,1738854638653,-150.0,0.00018489,2]
[351940653,1738854638662,-150.0,0.00018489,2]
[351940655,1738854638672,-2023.0,0.00018489,2]
[351940657,1738854638681,-1272.0,0.00018489,2]
[351940659,1738854638690,-150.0,0.00018489,2]
[351940660,1738854638699,-638.0,0.00018489,2]
[351940662,1738854638709,-568.0,0.00018489,2]
[351940665,1738854638719,-1826.0,0.00018489,2]
[351940666,1738854638729,-1264.0,0.00018489,2]
[351940668,1738854638739,-783.0,0.00018489,2]
[351940671,1738854638749,-907.0,0.00018489,2]
[351940694,1738854638966,-2761.27033141,0.00018489,2]
[351940700,1738854639022,-191.72966859,0.00018489,2]
[351940702,1738854639031,-645.67226102,0.00018489,2]
[351940704,1738854639042,-3377.32773898,0.00018489,2]
[351940706,1738854639051,-539.0,0.00018489,2]
[351940708,1738854639061,-3911.0,0.00018489,2]
[351940710,1738854639070,-1007.0,0.00018489,2]
[351940712,1738854639079,-150.0,0.00018489,2]
[351940714,1738854639093,-1108.0,0.00018489,2]
[351940716,1738854639102,-201.51727192,0.00018489,2]
[351940719,1738854639114,-173.21272808,0.00018489,2]
[351940721,1738854639125,-1000.0,0.000185,6]
[351940723,1738854639134,-1600.0,0.000186,6]
[351940725,1738854639145,-2100.0,0.000187,6]
[351940727,1738854639154,-2700.0,0.000188,6]
[351940729,1738854639164,-374.96,0.00018805,2]
[351940731,1738854639174,-500.0,0.000189,6]
[351940732,1738854639184,-475.8335147,0.00018913,2]
[351940735,1738854639193,-288.72768032,0.00018948,2]
[351940736,1738854639203,-155.12419909,0.00019,4]
[351940739,1738854639214,-451.87580091,0.00019,4]
[351940741,1738854639223,-13550.80779889,0.00019,2]
[351940743,1738854639232,-1000.0,0.00019,2]
[351940745,1738854639241,-57373.75599991,0.00019,2]
[351940746,1738854639250,-1000.0,0.00019066,2]
[351940748,1738854639260,-500.0,0.00019082,2]
[351940750,1738854639269,-219.0,0.000191,2]
[351940752,1738854639278,-4254.43641518,0.00019128,5]
[351940754,1738854639288,-500.0,0.00019146,2]
[351940756,1738854639297,-417.66758456,0.00019173,2]
[351940758,1738854639306,-1348.43703,0.00019175,2]
[351940760,1738854639315,-1233.46148797,0.00019177,5]
[351940762,1738854639324,-53575.35924555,0.00019177,2]
[351940764,1738854639334,-469.07102359,0.00019177,5]
[351940766,1738854639343,-507.07884636,0.00019177,2]
[351940768,1738854639352,-466.85934364,0.00019178,2]
[351940770,1738854639362,-500.0,0.00019178,2]
[351940772,1738854639371,-500.0,0.00019178,2]
[351940774,1738854639380,-500.0,0.00019178,2]
[351940776,1738854639391,-500.0,0.00019178,2]
[351940778,1738854639404,-500.0,0.00019178,2]
[351940780,1738854639414,-286.80530839,0.00019178,2]
[351940781,1738854639424,-500.0,0.00019178,2]
[351940782,1738854639434,-565.22421465,0.00019178,2]
[351940783,1738854639444,-649.11625946,0.00019178,2]
[351940784,1738854639454,-548.81559558,0.00019178,2]
[351940785,1738854639464,-545.95773989,0.00019178,2]
[351940786,1738854639475,-417.356214,0.00019178,2]
[351940787,1738854639484,-500.0,0.00019178,2]
[351940788,1738854639495,-626.24548031,0.00019178,2]
[351940789,1738854639505,-500.0,0.00019178,2]
[351940790,1738854639515,-501.68749167,0.00019178,2]
[351940791,1738854639525,-500.0,0.00019178,2]
[351940792,1738854639535,-278.04356115,0.00019178,2]
[351940793,1738854639545,-500.0,0.00019178,2]
[351940795,1738854639554,-511.3312512,0.00019178,2]
[351940797,1738854639565,-500.0,0.00019178,2]
[351940799,1738854639575,-500.0,0.00019178,2]
[351940801,1738854639584,-500.0,0.00019178,2]
[351940803,1738854639594,-235.05279851,0.00019178,2]
[351940805,1738854639604,-500.0,0.00019178,2]
[351940807,1738854639613,-500.0,0.00019178,2]
[351940809,1738854639622,-500.0,0.00019178,2]
[351940811,1738854639632,-500.0,0.00019178,2]
[351940813,1738854639645,-500.0,0.00019178,2]
[351940815,1738854639654,-500.0,0.00019178,2]
[351940817,1738854639663,-500.0,0.00019178,2]
[351940819,1738854639673,-500.0,0.00019178,2]
[351940821,1738854639682,-500.0,0.00019178,2]
[351940823,1738854639692,-500.0,0.00019178,2]
[351940825,1738854639701,-500.0,0.00019178,2]
[351940826,1738854639710,-500.0,0.00019178,2]
[351940828,1738854639719,-500.0,0.00019178,2]
[351940830,1738854639729,-500.0,0.00019178,2]
[351940832,1738854639738,-500.0,0.00019178,2]
[351940834,1738854639747,-500.0,0.00019178,2]
[351940836,1738854639757,-500.0,0.00019178,2]
[351940838,1738854639767,-500.0,0.00019178,2]
[351940840,1738854639776,-500.0,0.00019178,2]
[351940842,1738854639787,-500.0,0.00019178,2]
[351940844,1738854639796,-202.93245154,0.00019178,2]
[351940846,1738854639806,-500.0,0.00019178,2]
[351940849,1738854639815,-500.0,0.00019178,2]
[351940850,1738854639825,-500.23140016,0.00019178,2]
[351940852,1738854639834,-300.0,0.00019178,2]
[351940855,1738854639844,-500.0,0.00019178,2]
[351940856,1738854639853,-500.0,0.00019178,2]
[351940858,1738854639863,-500.0,0.00019178,2]
[351940860,1738854639872,-500.0,0.00019178,2]
[351940862,1738854639881,-500.0,0.00019178,2]
[351940864,1738854639892,-500.0,0.00019178,2]
[351940866,1738854639902,-500.0,0.00019178,2]
[351940868,1738854639911,-500.0,0.00019178,2]
[351940871,1738854639921,-500.0,0.00019178,2]
[351940873,1738854639930,-158.99835379,0.00019178,2]